[Event "December 5 Early 2023"]
[Site "https://www.chess.com"]
[Date "2023.12.05"]
[Round "4"]
[White "Urbina Perez, Juan Antonio"]
[Black "Aradhya, Garg"]
[Result "1/2-1/2"]
[Board "113"]
[TimeControl "180+1"]
[WhiteFideId "2217368"]
[BlackFideId "25006746"]
[WhiteElo "2510"]
[BlackElo "2711"]
[WhiteTeam "ESP"]
[BlackTeam "IND"]
[WhiteClock "0:00:09"]
[BlackClock "0:00:06"]

1. e4 {[%clk 0:03:00]}  e5 {[%clk 0:02:59]} 2. Nf3 {[%clk 0:03:00]}  Nc6 {[%clk 0:03:00]} 3. Bc4 {[%clk 0:03:01]}  Nf6 {[%clk 0:02:59]} 4. d3 {[%clk 0:03:01]}  Bc5 {[%clk 0:02:59]} 5. Bg5 {[%clk 0:03:01]}  h6 {[%clk 0:02:59]} 6. Bh4 {[%clk 0:02:59]}  d6 {[%clk 0:02:55]} 7. a4 {[%clk 0:02:57]}  a5 {[%clk 0:02:53]} 8. Nc3 {[%clk 0:02:54]}  g5 {[%clk 0:02:50]} 9. Bg3 {[%clk 0:02:53]}  Bg4 {[%clk 0:02:49]} 10. Nb1 {[%clk 0:02:49]}  Bxf3 {[%clk 0:00:56]} 11. Qxf3 {[%clk 0:02:46]}  h5 {[%clk 0:00:56]} 12. h4 {[%clk 0:02:44]}  Nd4 {[%clk 0:00:56]} 13. Qd1 {[%clk 0:02:43]}  Ng4 {[%clk 0:00:56]} 14. c3 {[%clk 0:02:36]}  Ne6 {[%clk 0:00:56]} 15. Nd2 {[%clk 0:02:27]}  gxh4 {[%clk 0:00:55]} 16. Bxh4 {[%clk 0:02:24]}  Qxh4 {[%clk 0:00:55]} 17. Rxh4 {[%clk 0:02:17]}  Bxf2+ {[%clk 0:00:55]} 18. Kf1 {[%clk 0:02:10]}  Bxh4 {[%clk 0:00:54]} 19. Qb3 {[%clk 0:02:00]}  O-O-O {[%clk 0:00:53]} 20. Bxe6+ {[%clk 0:01:53]}  fxe6 {[%clk 0:00:53]} 21. Qxe6+ {[%clk 0:01:51]}  Kb8 {[%clk 0:00:53]} 22. Nf3 {[%clk 0:01:51]}  Rdf8 {[%clk 0:00:49]} 23. Ke2 {[%clk 0:01:50]}  Bg3 {[%clk 0:00:47]} 24. b4 {[%clk 0:01:49]}  Rf6 {[%clk 0:00:43]} 25. Qd5 {[%clk 0:01:39]}  axb4 {[%clk 0:00:38]} 26. a5 {[%clk 0:01:39]}  bxc3 {[%clk 0:00:28]} 27. a6 {[%clk 0:01:34]}  c6 {[%clk 0:00:28]} 28. Qc4 {[%clk 0:01:24]}  d5 {[%clk 0:00:17]} 29. Qxc3 {[%clk 0:01:06]}  dxe4 {[%clk 0:00:17]} 30. dxe4 {[%clk 0:01:03]}  Bf2 {[%clk 0:00:17]} 31. axb7 {[%clk 0:00:57]}  Kxb7 {[%clk 0:00:16]} 32. Qb4+ {[%clk 0:00:50]}  Bb6 {[%clk 0:00:15]} 33. Rb1 {[%clk 0:00:48]}  c5 {[%clk 0:00:14]} 34. Qxc5 {[%clk 0:00:45]}  Rc6 {[%clk 0:00:11]} 35. Qe7+ {[%clk 0:00:44]}  Rc7 {[%clk 0:00:12]} 36. Qb4 {[%clk 0:00:39]}  Rc2+ {[%clk 0:00:11]} 37. Ke1 {[%clk 0:00:31]}  Rc6 {[%clk 0:00:10]} 38. Nxe5 {[%clk 0:00:27]}  Nxe5 {[%clk 0:00:09]} 39. Qe7+ {[%clk 0:00:27]}  Kc8 {[%clk 0:00:09]} 40. Qxe5 {[%clk 0:00:27]}  Rd8 {[%clk 0:00:08]} 41. Qf5+ {[%clk 0:00:25]}  Kb7 {[%clk 0:00:06]} 42. Qf7+ {[%clk 0:00:23]}  Kb8 {[%clk 0:00:06]} 43. Qe7 {[%clk 0:00:21]}  Rdc8 {[%clk 0:00:05]} 44. e5 {[%clk 0:00:18]}  Rc1+ {[%clk 0:00:05]} 45. Rxc1 {[%clk 0:00:17]}  Rxc1+ {[%clk 0:00:05]} 46. Kd2 {[%clk 0:00:18]}  Rc7 {[%clk 0:00:06]} 47. Qd8+ {[%clk 0:00:17]}  Kb7 {[%clk 0:00:06]} 48. Qd5+ {[%clk 0:00:18]}  Ka7 {[%clk 0:00:05]} 49. e6 {[%clk 0:00:18]}  Bc5 {[%clk 0:00:05]} 50. Qa2+ {[%clk 0:00:15]}  Kb6 {[%clk 0:00:06]} 51. Qd5 {[%clk 0:00:15]}  h4 {[%clk 0:00:04]} 52. Qh5 {[%clk 0:00:15]}  Be7 {[%clk 0:00:04]} 53. Qe5 {[%clk 0:00:13]}  Rc5 {[%clk 0:00:04]} 54. Qb8+ {[%clk 0:00:12]}  Ka6 {[%clk 0:00:04]} 55. Qa8+ {[%clk 0:00:11]}  Kb6 {[%clk 0:00:05]} 56. Ke2 {[%clk 0:00:11]}  Re5+ {[%clk 0:00:04]} 57. Kf3 {[%clk 0:00:10]}  Rxe6 {[%clk 0:00:05]} 58. Qb8+ {[%clk 0:00:11]}  Kc6 {[%clk 0:00:05]} 59. Qc8+ {[%clk 0:00:11]}  Kd6 {[%clk 0:00:05]} 60. Qa6+ {[%clk 0:00:10]}  Kd7 {[%clk 0:00:05]} 61. Qa4+ {[%clk 0:00:10]}  Kd6 {[%clk 0:00:05]} 62. Qa6+ {[%clk 0:00:10]}  Kd7 {[%clk 0:00:06]} 63. Qb7+ {[%clk 0:00:10]}  Kd6 {[%clk 0:00:06]} 64. Qa6+ {[%clk 0:00:09]} 1/2-1/2

[Event "December 5 Early 2023"]
[Site "https://www.chess.com"]
[Date "2023.12.05"]
[Round "4"]
[White "Papasimakopoulos, Alexandros"]
[Black "Estrada Nieto, Julian"]
[Result "0-1"]
[Board "114"]
[TimeControl "180+1"]
[WhiteFideId "4244125"]
[BlackFideId "5101018"]
[WhiteElo "2660"]
[BlackElo "2502"]
[WhiteTeam "GRE"]
[BlackTeam "ESP"]
[WhiteClock "0:00:01"]
[BlackClock "0:00:35"]

1. d4 {[%clk 0:02:55]}  d5 {[%clk 0:02:58]} 2. c4 {[%clk 0:02:54]}  dxc4 {[%clk 0:02:59]} 3. Nf3 {[%clk 0:02:53]}  Nf6 {[%clk 0:02:59]} 4. e3 {[%clk 0:02:53]}  e6 {[%clk 0:02:59]} 5. Bxc4 {[%clk 0:02:53]}  a6 {[%clk 0:03:00]} 6. O-O {[%clk 0:02:52]}  c5 {[%clk 0:03:01]} 7. Bd3 {[%clk 0:02:50]}  cxd4 {[%clk 0:03:00]} 8. exd4 {[%clk 0:02:50]}  Nc6 {[%clk 0:03:00]} 9. Nc3 {[%clk 0:02:49]}  g6 {[%clk 0:02:58]} 10. Re1 {[%clk 0:02:39]}  Bg7 {[%clk 0:02:57]} 11. Bg5 {[%clk 0:02:03]}  Nxd4 {[%clk 0:02:52]} 12. Nxd4 {[%clk 0:01:57]}  Qxd4 {[%clk 0:02:51]} 13. Bb5+ {[%clk 0:01:56]}  Nd7 {[%clk 0:02:51]} 14. Qc2 {[%clk 0:01:13]}  Qg4 {[%clk 0:02:35]} 15. Ne4 {[%clk 0:00:45]}  O-O {[%clk 0:02:15]} 16. Bxd7 {[%clk 0:00:34]}  Bxd7 {[%clk 0:02:14]} 17. Bf6 {[%clk 0:00:22]}  Rfc8 {[%clk 0:01:58]} 18. Qd2 {[%clk 0:00:17]}  Bc6 {[%clk 0:01:52]} 19. f3 {[%clk 0:00:17]}  Qf5 {[%clk 0:01:47]} 20. Bxg7 {[%clk 0:00:17]}  Kxg7 {[%clk 0:01:46]} 21. Nd6 {[%clk 0:00:16]}  Qc5+ {[%clk 0:01:46]} 22. Kh1 {[%clk 0:00:13]}  Rd8 {[%clk 0:01:45]} 23. Rad1 {[%clk 0:00:13]}  Rd7 {[%clk 0:01:36]} 24. b4 {[%clk 0:00:12]}  Rxd6 {[%clk 0:01:18]} 25. Qxd6 {[%clk 0:00:11]}  Qxd6 {[%clk 0:01:18]} 26. Rxd6 {[%clk 0:00:11]}  Rc8 {[%clk 0:01:18]} 27. Rc1 {[%clk 0:00:11]}  Kf6 {[%clk 0:01:15]} 28. Rd2 {[%clk 0:00:08]}  Ke7 {[%clk 0:01:14]} 29. Kg1 {[%clk 0:00:09]}  Rd8 {[%clk 0:01:14]} 30. Rxd8 {[%clk 0:00:08]}  Kxd8 {[%clk 0:01:15]} 31. Kf2 {[%clk 0:00:09]}  Ke7 {[%clk 0:01:14]} 32. Ke3 {[%clk 0:00:09]}  Kd6 {[%clk 0:01:15]} 33. Rd1+ {[%clk 0:00:08]}  Ke7 {[%clk 0:01:13]} 34. Rd2 {[%clk 0:00:09]}  e5 {[%clk 0:01:13]} 35. g3 {[%clk 0:00:09]}  f5 {[%clk 0:01:13]} 36. a3 {[%clk 0:00:05]}  g5 {[%clk 0:01:13]} 37. f4 {[%clk 0:00:04]}  exf4+ {[%clk 0:00:59]} 38. gxf4 {[%clk 0:00:05]}  g4 {[%clk 0:01:00]} 39. Kd4 {[%clk 0:00:04]}  Kd6 {[%clk 0:00:58]} 40. Re2 {[%clk 0:00:03]}  h5 {[%clk 0:00:48]} 41. Re5 {[%clk 0:00:04]}  Bd7 {[%clk 0:00:44]} 42. Re3 {[%clk 0:00:01]}  h4 {[%clk 0:00:44]} 43. Re1 {[%clk 0:00:01]}  Bc6 {[%clk 0:00:42]} 44. Rg1 {[%clk 0:00:01]}  Bf3 {[%clk 0:00:41]} 45. Re1 {[%clk 0:00:01]}  g3 {[%clk 0:00:39]} 46. h3 {[%clk 0:00:01]}  Bg2 {[%clk 0:00:38]} 47. Re8 {[%clk 0:00:01]}  Bxh3 {[%clk 0:00:38]} 48. Rh8 {[%clk 0:00:02]}  g2 {[%clk 0:00:36]} 49. Rh6+ {[%clk 0:00:02]}  Kc7 {[%clk 0:00:36]} 50. Rg6 {[%clk 0:00:03]}  Bg4 {[%clk 0:00:36]} 51. Ke5 {[%clk 0:00:03]}  g1=Q {[%clk 0:00:36]} 52. Rxg4 {[%clk 0:00:01]}  Qxg4 {[%clk 0:00:35]} 0-1

[Event "December 5 Early 2023"]
[Site "https://www.chess.com"]
[Date "2023.12.05"]
[Round "4"]
[White "Timerkhanov, Alexander"]
[Black "Alikhanov, Felix"]
[Result "1/2-1/2"]
[Board "115"]
[TimeControl "180+1"]
[WhiteFideId "24177938"]
[BlackFideId "4157427"]
[WhiteElo "2660"]
[BlackElo "2497"]
[WhiteTeam "RUS"]
[BlackTeam "RUS"]
[WhiteClock "0:00:50"]
[BlackClock "0:00:48"]

1. d4 {[%clk 0:03:00]}  Nf6 {[%clk 0:02:40]} 2. Bg5 {[%clk 0:03:00]}  d5 {[%clk 0:02:38]} 3. Nd2 {[%clk 0:03:00]}  c6 {[%clk 0:02:36]} 4. e3 {[%clk 0:02:59]}  Bf5 {[%clk 0:02:35]} 5. Bd3 {[%clk 0:02:49]}  Bxd3 {[%clk 0:02:34]} 6. cxd3 {[%clk 0:02:49]}  Nbd7 {[%clk 0:02:35]} 7. Ngf3 {[%clk 0:02:49]}  e6 {[%clk 0:02:35]} 8. O-O {[%clk 0:02:48]}  Be7 {[%clk 0:02:36]} 9. a3 {[%clk 0:02:48]}  O-O {[%clk 0:02:36]} 10. Qe2 {[%clk 0:02:48]}  h6 {[%clk 0:02:36]} 11. Bh4 {[%clk 0:02:48]}  Nh5 {[%clk 0:02:36]} 12. Bxe7 {[%clk 0:02:47]}  Qxe7 {[%clk 0:02:36]} 13. Rfc1 {[%clk 0:02:46]}  g6 {[%clk 0:02:33]} 14. Rab1 {[%clk 0:02:43]}  a5 {[%clk 0:02:32]} 15. b4 {[%clk 0:02:40]}  axb4 {[%clk 0:02:32]} 16. axb4 {[%clk 0:02:41]}  Ra2 {[%clk 0:02:28]} 17. Qd1 {[%clk 0:02:26]}  e5 {[%clk 0:02:27]} 18. dxe5 {[%clk 0:02:24]}  Nxe5 {[%clk 0:02:27]} 19. Nxe5 {[%clk 0:02:24]}  Qxe5 {[%clk 0:02:27]} 20. d4 {[%clk 0:02:24]}  Qd6 {[%clk 0:01:54]} 21. b5 {[%clk 0:02:21]}  Nf6 {[%clk 0:01:43]} 22. bxc6 {[%clk 0:02:21]}  bxc6 {[%clk 0:01:44]} 23. Rc2 {[%clk 0:02:12]}  Rxc2 {[%clk 0:01:37]} 24. Qxc2 {[%clk 0:02:13]}  Rc8 {[%clk 0:01:30]} 25. Rc1 {[%clk 0:02:09]}  Kg7 {[%clk 0:01:26]} 26. h3 {[%clk 0:02:09]}  h5 {[%clk 0:01:23]} 27. Qc5 {[%clk 0:02:03]}  Qxc5 {[%clk 0:01:22]} 28. Rxc5 {[%clk 0:02:04]}  Nd7 {[%clk 0:01:23]} 29. Ra5 {[%clk 0:01:59]}  c5 {[%clk 0:01:20]} 30. dxc5 {[%clk 0:01:59]}  Rxc5 {[%clk 0:01:20]} 31. Rxc5 {[%clk 0:01:27]}  Nxc5 {[%clk 0:01:21]} 32. Nf3 {[%clk 0:01:27]}  Ne4 {[%clk 0:01:17]} 33. Nd4 {[%clk 0:01:28]}  Kf6 {[%clk 0:01:15]} 34. f3 {[%clk 0:01:28]}  Nd6 {[%clk 0:01:14]} 35. Kf2 {[%clk 0:01:29]}  h4 {[%clk 0:01:12]} 36. f4 {[%clk 0:01:24]}  Nf5 {[%clk 0:01:00]} 37. Nf3 {[%clk 0:01:16]}  Ke6 {[%clk 0:00:49]} 38. Ng5+ {[%clk 0:00:50]}  Ke7 {[%clk 0:00:48]} 1/2-1/2

[Event "December 5 Early 2023"]
[Site "https://www.chess.com"]
[Date "2023.12.05"]
[Round "4"]
[White "Jakubowski, Krzysztof"]
[Black "Krzywda, Andrzej"]
[Result "0-1"]
[Board "116"]
[TimeControl "180+1"]
[WhiteFideId "1112848"]
[BlackFideId "1114565"]
[WhiteElo "2646"]
[BlackElo "2490"]
[WhiteTeam "POL"]
[BlackTeam "POL"]
[WhiteClock "0:00:00"]
[BlackClock "0:00:08"]

1. e4 {[%clk 0:02:58]}  e5 {[%clk 0:03:00]} 2. Nf3 {[%clk 0:02:57]}  Nf6 {[%clk 0:03:00]} 3. Nxe5 {[%clk 0:02:55]}  d6 {[%clk 0:03:01]} 4. Nd3 {[%clk 0:02:54]}  Nxe4 {[%clk 0:03:00]} 5. Qe2 {[%clk 0:02:54]}  Qe7 {[%clk 0:02:58]} 6. Nf4 {[%clk 0:02:54]}  c6 {[%clk 0:02:53]} 7. f3 {[%clk 0:02:49]}  Nf6 {[%clk 0:02:52]} 8. h4 {[%clk 0:02:49]}  h5 {[%clk 0:02:46]} 9. d4 {[%clk 0:02:38]}  Bf5 {[%clk 0:02:45]} 10. c3 {[%clk 0:02:34]}  Nbd7 {[%clk 0:02:35]} 11. Nd2 {[%clk 0:02:27]}  Nb6 {[%clk 0:02:33]} 12. Qxe7+ {[%clk 0:02:23]}  Bxe7 {[%clk 0:02:32]} 13. Kf2 {[%clk 0:02:24]}  O-O-O {[%clk 0:02:24]} 14. a4 {[%clk 0:02:21]}  Nbd5 {[%clk 0:02:14]} 15. Nc4 {[%clk 0:02:15]}  Nxf4 {[%clk 0:02:07]} 16. Bxf4 {[%clk 0:02:14]}  Nd5 {[%clk 0:02:08]} 17. Bg3 {[%clk 0:02:07]}  Rh6 {[%clk 0:01:55]} 18. Be2 {[%clk 0:01:57]}  Bf8 {[%clk 0:01:42]} 19. Rhe1 {[%clk 0:01:40]}  Re8 {[%clk 0:01:42]} 20. Bf1 {[%clk 0:01:38]}  Rxe1 {[%clk 0:01:39]} 21. Rxe1 {[%clk 0:01:37]}  Kd7 {[%clk 0:01:39]} 22. Na5 {[%clk 0:01:15]}  b6 {[%clk 0:01:33]} 23. Nb3 {[%clk 0:01:07]}  Re6 {[%clk 0:01:32]} 24. Rxe6 {[%clk 0:01:03]}  Bxe6 {[%clk 0:01:32]} 25. Nd2 {[%clk 0:01:02]}  Bf5 {[%clk 0:01:27]} 26. Bc4 {[%clk 0:01:01]}  Be6 {[%clk 0:01:24]} 27. Ne4 {[%clk 0:00:56]}  f6 {[%clk 0:01:23]} 28. Bd3 {[%clk 0:00:53]}  Be7 {[%clk 0:01:13]} 29. Nd2 {[%clk 0:00:46]}  Bf7 {[%clk 0:01:09]} 30. Ke2 {[%clk 0:00:41]}  g6 {[%clk 0:01:03]} 31. c4 {[%clk 0:00:28]}  Nc7 {[%clk 0:00:56]} 32. Bf2 {[%clk 0:00:24]}  Ne6 {[%clk 0:00:56]} 33. g3 {[%clk 0:00:24]}  f5 {[%clk 0:00:55]} 34. f4 {[%clk 0:00:22]}  Bf6 {[%clk 0:00:54]} 35. Nf3 {[%clk 0:00:21]}  c5 {[%clk 0:00:47]} 36. dxc5 {[%clk 0:00:18]}  Nxc5 {[%clk 0:00:37]} 37. Bxc5 {[%clk 0:00:11]}  bxc5 {[%clk 0:00:36]} 38. b3 {[%clk 0:00:10]}  Kc6 {[%clk 0:00:33]} 39. Kd2 {[%clk 0:00:05]}  Kb6 {[%clk 0:00:31]} 40. Be2 {[%clk 0:00:05]}  Ka5 {[%clk 0:00:30]} 41. Kc2 {[%clk 0:00:05]}  Kb6 {[%clk 0:00:29]} 42. Ne1 {[%clk 0:00:05]}  Bd4 {[%clk 0:00:27]} 43. Nd3 {[%clk 0:00:05]}  Be8 {[%clk 0:00:20]} 44. Bf3 {[%clk 0:00:05]}  Bc6 {[%clk 0:00:20]} 45. Bxc6 {[%clk 0:00:04]}  Kxc6 {[%clk 0:00:21]} 46. Nc1 {[%clk 0:00:04]}  d5 {[%clk 0:00:21]} 47. Ne2 {[%clk 0:00:04]}  Bf2 {[%clk 0:00:21]} 48. Kd3 {[%clk 0:00:03]}  d4 {[%clk 0:00:20]} 49. Kc2 {[%clk 0:00:03]}  Kb6 {[%clk 0:00:20]} 50. Kb2 {[%clk 0:00:02]}  d3 {[%clk 0:00:17]} 51. Nc3 {[%clk 0:00:02]}  Bxg3 {[%clk 0:00:16]} 52. Nd5+ {[%clk 0:00:02]}  Ka5 {[%clk 0:00:13]} 53. Ne7 {[%clk 0:00:03]}  Bxh4 {[%clk 0:00:11]} 54. Nxg6 {[%clk 0:00:03]}  Bf6+ {[%clk 0:00:12]} 55. Kc1 {[%clk 0:00:03]}  Kb4 {[%clk 0:00:12]} 56. Kd2 {[%clk 0:00:03]}  Kxb3 {[%clk 0:00:11]} 57. Kxd3 {[%clk 0:00:04]}  Kxa4 {[%clk 0:00:12]} 58. Ne5 {[%clk 0:00:04]}  Kb3 {[%clk 0:00:12]} 59. Nd7 {[%clk 0:00:04]}  Kb4 {[%clk 0:00:11]} 60. Nxf6 {[%clk 0:00:04]}  h4 {[%clk 0:00:11]} 61. Nd5+ {[%clk 0:00:04]}  Kb3 {[%clk 0:00:11]} 62. Ne3 {[%clk 0:00:05]}  a5 {[%clk 0:00:10]} 63. Nxf5 {[%clk 0:00:05]}  a4 {[%clk 0:00:11]} 64. Ne3 {[%clk 0:00:03]}  a3 {[%clk 0:00:10]} 65. f5 {[%clk 0:00:03]}  a2 {[%clk 0:00:10]} 66. Nc2 {[%clk 0:00:03]}  h3 {[%clk 0:00:09]} 67. f6 {[%clk 0:00:04]}  h2 {[%clk 0:00:10]} 68. f7 {[%clk 0:00:04]}  h1=Q {[%clk 0:00:10]} 69. f8=Q {[%clk 0:00:04]}  Qd1+ {[%clk 0:00:10]} 70. Ke3 {[%clk 0:00:04]}  Qxc2 {[%clk 0:00:09]} 71. Qb8+ {[%clk 0:00:04]}  Kc3 {[%clk 0:00:08]} 72. Qh8+ {[%clk 0:00:04]}  Kxc4 {[%clk 0:00:07]} 73. Qg8+ {[%clk 0:00:04]}  Kb4 {[%clk 0:00:07]} 74. Qb8+ {[%clk 0:00:04]}  Kc3 {[%clk 0:00:08]} 75. Qh8+ {[%clk 0:00:04]}  Kb3 {[%clk 0:00:07]} 76. Qb8+ {[%clk 0:00:04]}  Ka3 {[%clk 0:00:08]} 77. Qa8+ {[%clk 0:00:00]}  Kb2 {[%clk 0:00:08]} 0-1

[Event "December 5 Early 2023"]
[Site "https://www.chess.com"]
[Date "2023.12.05"]
[Round "4"]
[White "NovakRatko"]
[Black "Kuzhylnyi, Oleksandr"]
[Result "0-1"]
[Board "118"]
[TimeControl "180+1"]
[BlackFideId "34110500"]
[WhiteElo "2481"]
[BlackElo "2645"]
[BlackTeam "UKR"]
[WhiteClock "0:00:00"]
[BlackClock "0:00:52"]

1. d4 {[%clk 0:02:58]}  d5 {[%clk 0:02:59]} 2. c4 {[%clk 0:02:59]}  c6 {[%clk 0:03:00]} 3. cxd5 {[%clk 0:02:59]}  cxd5 {[%clk 0:03:01]} 4. Nc3 {[%clk 0:03:00]}  Nf6 {[%clk 0:03:01]} 5. f3 {[%clk 0:03:01]}  Qb6 {[%clk 0:03:01]} 6. e3 {[%clk 0:02:59]}  Nc6 {[%clk 0:02:59]} 7. Bd3 {[%clk 0:02:59]}  e5 {[%clk 0:02:59]} 8. dxe5 {[%clk 0:02:58]}  Nxe5 {[%clk 0:03:00]} 9. Nge2 {[%clk 0:02:56]}  Be7 {[%clk 0:02:57]} 10. Bc2 {[%clk 0:02:54]}  O-O {[%clk 0:02:50]} 11. Nxd5 {[%clk 0:02:45]}  Nxd5 {[%clk 0:02:43]} 12. Qxd5 {[%clk 0:02:45]}  Bf6 {[%clk 0:02:32]} 13. O-O {[%clk 0:02:39]}  Be6 {[%clk 0:02:28]} 14. Qe4 {[%clk 0:02:38]}  g6 {[%clk 0:02:28]} 15. Nd4 {[%clk 0:02:16]}  Bc4 {[%clk 0:02:29]} 16. Re1 {[%clk 0:02:08]}  Rfe8 {[%clk 0:02:29]} 17. Qf4 {[%clk 0:02:01]}  Nd3 {[%clk 0:02:12]} 18. Bxd3 {[%clk 0:01:57]}  Bxd3 {[%clk 0:02:13]} 19. Rd1 {[%clk 0:01:44]}  Ba6 {[%clk 0:02:00]} 20. Bd2 {[%clk 0:01:35]}  Be5 {[%clk 0:01:55]} 21. Qg5 {[%clk 0:01:32]}  Qxb2 {[%clk 0:01:46]} 22. Rab1 {[%clk 0:01:25]}  Qxa2 {[%clk 0:01:47]} 23. Ra1 {[%clk 0:00:41]}  Qd5 {[%clk 0:01:32]} 24. f4 {[%clk 0:00:33]}  f6 {[%clk 0:01:31]} 25. Qh6 {[%clk 0:00:27]}  Bxd4 {[%clk 0:01:25]} 26. exd4 {[%clk 0:00:27]}  Re2 {[%clk 0:01:26]} 27. Qh3 {[%clk 0:00:23]}  Qxd4+ {[%clk 0:01:24]} 28. Kh1 {[%clk 0:00:23]}  Rxd2 {[%clk 0:01:23]} 29. Rg1 {[%clk 0:00:16]}  Re8 {[%clk 0:01:21]} 30. f5 {[%clk 0:00:07]}  g5 {[%clk 0:01:21]} 31. Qh6 {[%clk 0:00:06]}  Bb5 {[%clk 0:00:56]} 32. Rae1 {[%clk 0:00:00]}  Rxe1 {[%clk 0:00:52]} 0-1

[Event "December 5 Early 2023"]
[Site "https://www.chess.com"]
[Date "2023.12.05"]
[Round "4"]
[White "Antunez Soler, Luis"]
[Black "Manukyan, Sargis V."]
[Result "1-0"]
[Board "119"]
[TimeControl "180+1"]
[WhiteFideId "3513335"]
[BlackFideId "13303465"]
[WhiteElo "2645"]
[BlackElo "2476"]
[WhiteTeam "CUB"]
[BlackTeam "ARM"]
[WhiteClock "0:02:56"]
[BlackClock "0:01:51"]

1. e4 {[%clk 0:03:00]}  e6 {[%clk 0:01:59]} 2. d4 {[%clk 0:02:59]}  d5 {[%clk 0:01:59]} 3. Nc3 {[%clk 0:03:00]}  Bb4 {[%clk 0:01:59]} 4. e5 {[%clk 0:03:00]}  c5 {[%clk 0:02:00]} 5. a3 {[%clk 0:03:01]}  Bxc3+ {[%clk 0:02:01]} 6. bxc3 {[%clk 0:03:02]}  Qa5 {[%clk 0:02:01]} 7. Bd2 {[%clk 0:03:01]}  Qa4 {[%clk 0:02:01]} 8. Nf3 {[%clk 0:03:01]}  b6 {[%clk 0:02:01]} 9. h4 {[%clk 0:03:00]}  Ba6 {[%clk 0:02:00]} 10. h5 {[%clk 0:03:01]}  h6 {[%clk 0:01:59]} 11. Rh4 {[%clk 0:03:01]}  Ne7 {[%clk 0:01:59]} 12. dxc5 {[%clk 0:02:57]}  bxc5 {[%clk 0:01:51]} 13. Rxa4 {[%clk 0:02:56]} 1-0

[Event "December 5 Early 2023"]
[Site "https://www.chess.com"]
[Date "2023.12.05"]
[Round "4"]
[White "Reprintsev, Alexander"]
[Black "Degenbaev, Aziz"]
[Result "1-0"]
[Board "121"]
[TimeControl "180+1"]
[WhiteFideId "14100541"]
[BlackFideId "13802640"]
[WhiteElo "2471"]
[BlackElo "2624"]
[WhiteTeam "UKR"]
[BlackTeam "KGZ"]
[WhiteClock "0:00:08"]
[BlackClock "0:00:00"]

1. e4 {[%clk 0:02:52]}  e6 {[%clk 0:02:56]} 2. d4 {[%clk 0:02:48]}  d5 {[%clk 0:02:57]} 3. Nc3 {[%clk 0:02:47]}  Nc6 {[%clk 0:02:57]} 4. Nf3 {[%clk 0:02:41]}  Nf6 {[%clk 0:02:57]} 5. e5 {[%clk 0:02:39]}  Ne4 {[%clk 0:02:57]} 6. Bd3 {[%clk 0:02:37]}  Bb4 {[%clk 0:02:57]} 7. Bd2 {[%clk 0:02:29]}  Bxc3 {[%clk 0:02:56]} 8. bxc3 {[%clk 0:02:28]}  b6 {[%clk 0:02:56]} 9. O-O {[%clk 0:02:26]}  Bb7 {[%clk 0:02:55]} 10. Re1 {[%clk 0:02:23]}  Qd7 {[%clk 0:02:50]} 11. Bxe4 {[%clk 0:02:12]}  dxe4 {[%clk 0:02:50]} 12. Ng5 {[%clk 0:02:12]}  O-O-O {[%clk 0:02:43]} 13. Nxe4 {[%clk 0:02:11]}  Na5 {[%clk 0:02:37]} 14. f3 {[%clk 0:02:05]}  Qd5 {[%clk 0:02:26]} 15. Bg5 {[%clk 0:02:02]}  Rd7 {[%clk 0:02:07]} 16. Bh4 {[%clk 0:02:01]}  h6 {[%clk 0:02:06]} 17. Bf2 {[%clk 0:02:00]}  Nc4 {[%clk 0:02:04]} 18. Qe2 {[%clk 0:01:55]}  Rf8 {[%clk 0:02:03]} 19. Nd2 {[%clk 0:01:50]}  Nxd2 {[%clk 0:01:50]} 20. Qxd2 {[%clk 0:01:49]}  f6 {[%clk 0:01:48]} 21. exf6 {[%clk 0:01:48]}  gxf6 {[%clk 0:01:48]} 22. Qxh6 {[%clk 0:01:46]}  Rg8 {[%clk 0:01:47]} 23. Bg3 {[%clk 0:01:44]}  Qf5 {[%clk 0:01:44]} 24. Qd2 {[%clk 0:01:39]}  Rh7 {[%clk 0:01:40]} 25. Qd3 {[%clk 0:01:38]}  Qh5 {[%clk 0:01:37]} 26. Rxe6 {[%clk 0:01:34]}  Bd5 {[%clk 0:01:19]} 27. Ree1 {[%clk 0:01:27]}  f5 {[%clk 0:01:08]} 28. c4 {[%clk 0:01:27]}  f4 {[%clk 0:01:01]} 29. cxd5 {[%clk 0:01:08]}  fxg3 {[%clk 0:00:46]} 30. h3 {[%clk 0:01:08]}  Rf7 {[%clk 0:00:43]} 31. c4 {[%clk 0:01:06]}  Rgf8 {[%clk 0:00:41]} 32. a4 {[%clk 0:01:03]}  Rxf3 {[%clk 0:00:31]} 33. gxf3 {[%clk 0:00:59]}  Qxh3 {[%clk 0:00:24]} 34. Qe2 {[%clk 0:00:59]}  Qh4 {[%clk 0:00:18]} 35. Rad1 {[%clk 0:00:44]}  Kb7 {[%clk 0:00:15]} 36. c5 {[%clk 0:00:43]}  a5 {[%clk 0:00:05]} 37. d6 {[%clk 0:00:38]}  Re8 {[%clk 0:00:05]} 38. Qg2 {[%clk 0:00:35]}  Rxe1+ {[%clk 0:00:04]} 39. Rxe1 {[%clk 0:00:35]}  Qxd4+ {[%clk 0:00:04]} 40. Kf1 {[%clk 0:00:34]}  Qc4+ {[%clk 0:00:05]} 41. Qe2 {[%clk 0:00:33]}  Qxc5 {[%clk 0:00:05]} 42. d7 {[%clk 0:00:30]}  Qh5 {[%clk 0:00:05]} 43. Qe4+ {[%clk 0:00:18]}  Ka7 {[%clk 0:00:05]} 44. Ke2 {[%clk 0:00:18]}  Qh2+ {[%clk 0:00:04]} 45. Kd3 {[%clk 0:00:18]}  Qh8 {[%clk 0:00:01]} 46. Qe5 {[%clk 0:00:17]}  Qd8 {[%clk 0:00:01]} 47. Qe7 {[%clk 0:00:16]}  Qg8 {[%clk 0:00:01]} 48. d8=Q {[%clk 0:00:16]}  Qb3+ {[%clk 0:00:02]} 49. Ke4 {[%clk 0:00:16]}  Qc2+ {[%clk 0:00:02]} 50. Kf4 {[%clk 0:00:15]}  Qc4+ {[%clk 0:00:03]} 51. Re4 {[%clk 0:00:14]}  Qc1+ {[%clk 0:00:03]} 52. Kxg3 {[%clk 0:00:13]}  Qg1+ {[%clk 0:00:03]} 53. Kf4 {[%clk 0:00:14]}  Qh2+ {[%clk 0:00:03]} 54. Ke3 {[%clk 0:00:14]}  Qg1+ {[%clk 0:00:04]} 55. Kf4 {[%clk 0:00:12]}  Qh2+ {[%clk 0:00:04]} 56. Kf5 {[%clk 0:00:13]}  Qh5+ {[%clk 0:00:04]} 57. Kf6 {[%clk 0:00:13]}  Qxf3+ {[%clk 0:00:04]} 58. Ke5 {[%clk 0:00:13]}  Qc3+ {[%clk 0:00:04]} 59. Ke6 {[%clk 0:00:12]}  Qb3+ {[%clk 0:00:04]} 60. Qd5 {[%clk 0:00:11]}  Qh3+ {[%clk 0:00:04]} 61. Qf5 {[%clk 0:00:11]}  Qb3+ {[%clk 0:00:04]} 62. Kf6 {[%clk 0:00:11]}  Qc3+ {[%clk 0:00:04]} 63. Qee5 {[%clk 0:00:11]}  Qc6+ {[%clk 0:00:05]} 64. Kf7 {[%clk 0:00:11]}  Qc1 {[%clk 0:00:02]} 65. Qd7 {[%clk 0:00:09]}  Kb7 {[%clk 0:00:02]} 66. Qed5+ {[%clk 0:00:09]}  Ka7 {[%clk 0:00:01]} 67. Re6 {[%clk 0:00:09]}  Qf1+ {[%clk 0:00:02]} 68. Ke8 {[%clk 0:00:09]}  Qa6 {[%clk 0:00:00]} 69. Qxc7+ {[%clk 0:00:08]} 1-0